bitfinex-derivatives/quotes_BNBF0:USTF0_20230831
["timestamp","ask_amount","ask_price","bid_price","bid_amount"]
[1693525202818,0.07536078,216.34,215.61,0.1700654]
[1693525203016,0.07536078,216.34,215.62,0.1700654]
[1693525203215,0.07536078,216.34,215.63,0.1700654]
[1693525203415,0.07536078,216.34,215.64,0.1700654]
[1693525203615,0.07536078,216.34,215.57,0.1700654]
[1693525203817,0.07536078,216.34,215.58,0.1700654]
[1693525204016,0.07536078,216.35,215.57,0.1700654]
[1693525204213,0.07536078,216.35,215.58,0.1700654]
[1693525204414,0.07536078,216.34,215.59,0.1700654]
[1693525204620,0.07536078,216.34,215.6,0.1700654]
[1693525204818,0.07536078,216.35,215.61,0.1700654]
[1693525205014,0.07536078,216.35,215.62,0.1700654]
[1693525205215,0.07536078,216.35,215.63,0.1700654]
[1693525205415,0.07536078,216.35,215.64,0.1700654]
[1693525205619,0.07536078,216.35,215.65,0.1700654]
[1693525205817,0.07536078,216.35,215.66,0.1700654]
[1693525206017,0.07536078,216.35,215.67,0.1700654]
[1693525206217,0.07536078,216.35,215.68,0.1700654]
[1693525206422,0.07536078,216.35,215.69,0.1700654]
[1693525206617,0.07536078,216.35,215.7,0.1700654]
[1693525206819,0.07536078,216.35,215.71,0.1700654]
[1693525207027,0.07536078,216.35,215.72,0.1700654]
[1693525207227,0.07536078,216.35,215.73,0.1700654]
[1693525207419,0.07536078,216.35,215.74,0.1700654]
[1693525207624,0.07536078,216.35,215.75,0.1700654]
[1693525207823,0.07536078,216.35,215.76,0.1700654]
[1693525208027,0.07536078,216.35,215.77,0.1700654]
[1693525208225,0.07536078,216.35,215.78,0.1700654]
[1693525208420,0.07536078,216.35,215.79,0.1700654]
[1693525208625,0.07536078,216.35,215.56,5.045984]
[1693525208626,0.07536078,216.35,215.8,0.1700654]
[1693525208821,0.07536078,216.35,215.81,0.1700654]
[1693525209024,0.07536078,216.35,215.82,0.1700654]
[1693525209223,0.07536078,216.35,215.83,0.1700654]
[1693525209422,0.07536078,216.35,215.84,0.1700654]
[1693525209625,0.07536078,216.35,215.85,0.1700654]
[1693525209827,0.07536078,216.35,215.86,0.1700654]
[1693525210027,0.07536078,216.35,215.87,0.1700654]
[1693525210328,0.07536078,216.35,215.88,0.1700654]
[1693525210630,0.07536078,216.35,215.56,5.045984]
[1693525210631,0.07536078,216.35,215.89,0.1700654]
[1693525210833,0.07536078,216.35,215.9,0.1700654]
[1693525211132,0.07536078,216.35,215.91,0.1700654]
[1693525211430,0.07536078,216.35,215.92,0.1700654]
[1693525211630,0.07536078,216.35,215.93,0.1700654]
[1693525211830,0.07536078,216.35,215.94,0.1700654]
[1693525212130,0.07536078,216.35,215.95,0.1700654]
[1693525212332,0.07536078,216.35,215.96,0.1700654]
[1693525212533,0.07536078,216.35,215.97,0.1700654]
[1693525212729,0.07536078,216.35,215.98,0.1700654]
[1693525212928,0.07536078,216.35,215.99,0.1700654]
[1693525213129,0.07536078,216.35,216.0,0.1700654]
[1693525213433,0.07536078,216.35,216.01,0.1700654]
[1693525213627,0.07536078,216.35,216.02,0.1700654]
[1693525213826,0.07536078,216.35,216.03,0.1700654]
[1693525214025,0.07536078,216.35,216.04,0.1700654]
[1693525214225,0.07536078,216.35,216.05,0.1700654]
[1693525214430,0.07536078,216.35,216.06,0.1700654]
[1693525214632,0.07536078,216.35,216.07,0.1700654]
[1693525214834,0.07536078,216.35,216.08,0.1700654]
[1693525215137,0.07536078,216.35,216.09,0.1700654]
[1693525215336,0.07536078,216.35,216.1,0.1700654]
[1693525215535,0.07536078,216.35,216.11,0.1700654]
[1693525215735,0.07536078,216.35,216.12,0.1700654]
[1693525215935,0.07536078,216.35,216.13,0.1700654]
[1693525216137,0.07536078,216.35,216.14,0.1700654]
[1693525216335,0.07536078,216.35,216.15,0.1700654]
[1693525216535,0.07536078,216.35,216.16,0.1700654]
[1693525216737,0.07536078,216.35,216.17,0.1700654]
[1693525216937,0.07536078,216.35,216.18,0.1700654]
[1693525217137,0.07536078,216.35,215.57,5.045984]
[1693525217337,0.07536078,216.35,215.58,0.16989973]
[1693525221342,0.07536078,216.34,215.58,0.16989973]
[1693525227349,0.07536078,216.34,215.59,0.16989973]
[1693525227548,0.07536078,216.34,215.6,0.16989973]
[1693525227842,0.07536078,216.34,215.61,0.16989973]
[1693525228048,0.07536078,216.34,215.62,0.16989973]
[1693525228347,0.07536078,216.34,215.63,0.16989973]
[1693525228545,0.07536078,216.34,215.64,0.16989973]
[1693525228740,0.07536078,216.34,215.65,0.16989973]
[1693525228945,0.07536078,216.34,215.66,0.16989973]
[1693525229146,0.07536078,216.34,215.67,0.16989973]
[1693525229344,0.07536078,216.34,215.68,0.16989973]
[1693525229542,0.07536078,216.34,215.69,0.16989973]
[1693525229848,0.07536078,216.34,215.7,0.16989973]
[1693525230147,0.07536078,216.34,215.71,0.16989973]
[1693525230342,0.07536078,216.34,215.72,0.16989973]
[1693525230546,0.07536078,216.34,215.73,0.16989973]
[1693525230741,0.07536078,216.34,215.74,0.16989973]
[1693525230942,0.07536078,216.34,215.57,5.21588373]
[1693525231143,0.07536078,216.34,215.58,0.16989973]
[1693525231448,0.07536078,216.33,215.58,0.16989973]
[1693525231648,0.07536078,216.33,215.59,0.16989973]
[1693525231845,0.07536078,216.33,215.56,0.16989973]
[1693525232045,0.07536078,216.33,215.57,0.16989973]
[1693525232245,0.07536078,216.33,215.58,0.16989973]
[1693525232441,0.07536078,216.33,215.59,0.16989973]
[1693525232647,0.07536078,216.33,215.6,0.16989973]
[1693525232847,0.07536078,216.33,215.56,0.16989973]
[1693525233045,0.07536078,216.33,215.57,0.16989973]
[1693525233243,0.07536078,216.33,215.58,0.16989973]
[1693525233448,0.07536078,216.33,215.59,0.16989973]
[1693525233648,0.07536078,216.33,215.6,0.16989973]
[1693525233847,0.07536078,216.33,215.56,0.16989973]
[1693525234051,0.07536078,216.33,215.57,0.16989973]
[1693525234250,0.07536078,216.33,215.55,0.16989973]
[1693525234443,0.07536078,216.33,215.58,0.16989973]
[1693525234648,0.07536078,216.33,215.59,0.16989973]
[1693525234847,0.07536078,216.33,215.55,0.16989973]
[1693525235050,0.07536078,216.33,215.56,0.16989973]
[1693525235250,0.07536078,216.33,215.55,0.16989973]
[1693525235450,0.07536078,216.33,215.56,0.16989973]
[1693525235750,0.07536078,216.33,215.57,0.16989973]
[1693525235950,0.07536078,216.33,215.58,0.16989973]
[1693525236151,0.07536078,216.33,215.59,0.16989973]
[1693525236354,0.07536078,216.33,215.6,0.16989973]
[1693525236546,0.07536078,216.33,215.61,0.16989973]
[1693525236749,0.07536078,216.33,215.55,0.16989973]
[1693525236950,0.07536078,216.35,215.56,0.16989973]
[1693525237150,0.07536078,216.36,215.57,0.16989973]
[1693525237345,0.07536078,216.36,215.58,0.16989973]
[1693525237550,0.07536078,216.36,215.59,0.16989973]
[1693525237747,0.07536078,216.36,215.6,0.16989973]
[1693525237953,0.07536078,216.36,215.61,0.16989973]
[1693525238152,0.07536078,216.36,215.62,0.16989973]
[1693525238452,0.07536078,216.36,215.63,0.16989973]
[1693525238652,0.07536078,216.36,215.64,0.16989973]
[1693525238846,0.07536078,216.36,215.65,0.16989973]
[1693525239045,0.07536078,216.36,215.66,0.16989973]
[1693525239253,0.07536078,216.36,215.67,0.16989973]
[1693525239454,0.07536078,216.36,215.68,0.16989973]
[1693525239752,0.07536078,216.36,215.69,0.16989973]
[1693525239954,0.07536078,216.36,215.7,0.16989973]
[1693525240152,0.07536078,216.36,215.71,0.16989973]
[1693525240347,0.07536078,216.36,215.72,0.16989973]
[1693525240549,0.07536078,216.36,215.73,0.16989973]
[1693525240752,0.07536078,216.36,215.74,0.16989973]
[1693525240950,0.07536078,216.36,215.75,0.16989973]
[1693525241150,0.07536078,216.36,215.76,0.16989973]
[1693525241351,0.07536078,216.36,215.57,5.045984]
[1693525241352,0.07536078,216.36,215.77,0.16989973]
[1693525241547,0.07536078,216.36,215.78,0.16989973]
[1693525241746,0.07536078,216.36,215.79,0.16989973]
[1693525241950,0.07536078,216.36,215.8,0.16989973]
[1693525242151,0.07536078,216.36,215.81,0.16989973]
[1693525242455,0.07536078,216.36,215.82,0.16989973]
[1693525242655,0.07536078,216.36,215.83,0.16989973]
[1693525242852,0.07536078,216.36,215.84,0.16989973]
[1693525243150,0.07536078,216.36,215.85,0.16989973]
[1693525243355,0.07536078,216.36,215.86,0.16989973]
[1693525243554,0.07536078,216.36,215.87,0.16989973]
[1693525243755,0.07536078,216.36,215.88,0.16989973]
[1693525243955,0.07536078,216.36,215.89,0.16989973]
[1693525244155,0.07536078,216.36,215.9,0.16989973]
[1693525244357,0.07536078,216.36,215.91,0.16989973]
[1693525244550,0.07536078,216.36,215.57,0.16989973]
[1693525244752,0.07536078,216.36,215.58,0.16989973]
[1693525244957,0.07536078,216.36,215.59,0.16989973]
[1693525245152,0.07536078,216.36,215.56,5.045984]
[1693525245153,0.07536078,216.36,215.6,0.16989973]
[1693525245360,0.07536078,216.36,215.61,0.16989973]
[1693525245551,0.07536078,216.36,215.62,0.16989973]
[1693525245751,0.07536078,216.36,215.63,0.16989973]
[1693525245951,0.07536078,216.36,215.64,0.16989973]
[1693525246155,0.07536078,216.36,215.65,0.16989973]
[1693525246457,0.07536078,216.36,215.66,0.16989973]
[1693525246657,0.07536078,216.36,215.67,0.16989973]
[1693525246958,0.07536078,216.36,215.68,0.16989973]
[1693525247157,0.07536078,216.36,215.57,0.16989973]
[1693525247459,0.07536078,216.36,215.58,0.16989973]
[1693525247659,0.07536078,216.36,215.59,0.16989973]
[1693525247859,0.07536078,216.36,215.57,0.16989973]
[1693525248158,0.07536078,216.36,215.58,0.16989973]
[1693525248359,0.07536078,216.36,215.59,0.16989973]
[1693525248555,0.07536078,216.36,215.6,0.16989973]
[1693525248757,0.07536078,216.36,215.61,0.16989973]
[1693525248958,0.07536078,216.36,215.62,0.16989973]
[1693525249153,0.07536078,216.36,215.63,0.16989973]
[1693525249354,0.07536078,216.36,215.57,0.16989973]
[1693525249561,0.07536078,216.36,215.58,0.16989973]
[1693525249860,0.07536078,216.36,215.59,0.16989973]
[1693525250166,0.07536078,216.36,215.6,0.16989973]
[1693525250358,0.07536078,216.36,215.61,0.16989973]
[1693525250559,0.07536078,216.36,215.62,0.16989973]
[1693525250856,0.07536078,216.36,215.63,0.16989973]
[1693525251056,0.07536078,216.36,215.64,0.16989973]
[1693525251260,0.07536078,216.36,215.65,0.16989973]
[1693525251561,0.07536078,216.36,215.66,0.16989973]
[1693525251861,0.07536078,216.36,215.67,0.16989973]
[1693525252062,0.07536078,216.36,215.56,5.045984]
[1693525252063,0.07536078,216.36,215.68,0.16989973]
[1693525252361,0.07536078,216.36,215.69,0.16989973]
[1693525252562,0.07536078,216.36,215.7,0.16989973]
[1693525252759,0.07536078,216.36,215.71,0.16989973]
[1693525252956,0.07536078,216.36,215.72,0.16989973]
[1693525253158,0.07536078,216.36,215.73,0.16989973]
[1693525253359,0.07536078,216.36,215.74,0.16989973]
[1693525253559,0.07536078,216.36,215.75,0.16989973]
[1693525253761,0.07536078,216.36,215.76,0.16989973]
[1693525253961,0.07536078,216.36,215.77,0.16989973]
[1693525254159,0.07536078,216.36,215.78,0.16989973]
[1693525254356,0.07536078,216.36,215.79,0.16989973]
[1693525254556,0.07536078,216.36,215.8,0.16989973]
[1693525254760,0.07536078,216.36,215.81,0.16989973]
[1693525254957,0.07536078,216.36,215.82,0.16989973]
[1693525255156,0.07536078,216.36,215.83,0.16989973]
[1693525255360,0.07536078,216.36,215.84,0.16989973]
[1693525255558,0.07536078,216.36,215.85,0.16989973]
[1693525255758,0.07536078,216.36,215.86,0.16989973]
[1693525255962,0.07536078,216.36,215.87,0.16989973]
[1693525256264,0.07536078,216.36,215.88,0.16989973]
[1693525256459,0.07536078,216.36,215.89,0.16989973]
[1693525256763,0.07536078,216.36,215.9,0.16989973]
[1693525257063,0.07536078,216.36,215.91,0.16989973]
[1693525257264,0.07536078,216.36,215.56,5.045984]
[1693525257265,0.07536078,216.36,215.92,0.16989973]
[1693525257464,0.07536078,216.36,215.93,0.16989973]
[1693525257667,0.07536078,216.36,215.94,0.16989973]
[1693525257865,0.07536078,216.36,215.95,0.16989973]
[1693525258067,0.07536078,216.36,215.96,0.16989973]
[1693525258261,0.07536078,216.36,215.97,0.16989973]
[1693525258459,0.07536078,216.36,215.98,0.16989973]
[1693525258663,0.07536078,216.36,215.56,5.045984]
[1693525258664,0.07536078,216.36,215.99,0.16989973]
[1693525258865,0.07536078,216.36,216.0,0.16989973]
[1693525259064,0.07536078,216.36,216.01,0.16989973]
[1693525259263,0.07536078,216.36,216.02,0.16989973]
[1693525259464,0.07536078,216.36,215.56,5.045984]
[1693525259465,0.07536078,216.36,216.03,0.16989973]
[1693525259666,0.07536078,216.36,216.04,0.16989973]
[1693525259868,0.07536078,216.36,216.05,0.16989973]
[1693525260169,0.07536078,216.36,216.06,0.16989973]
[1693525260370,0.07536078,216.36,216.07,0.16989973]
[1693525260664,0.07536078,216.36,216.08,0.16989973]
[1693525260869,0.07536078,216.36,216.09,0.16989973]
[1693525261062,0.07536078,216.36,215.57,0.16989973]
[1693525261370,0.07536078,216.36,215.58,0.16989973]
[1693525261569,0.07536078,216.36,215.59,0.16989973]
[1693525261869,0.07536078,216.36,215.6,0.16989973]
[1693525262063,0.07536078,216.36,215.61,0.16989973]
[1693525262267,0.07536078,216.36,215.62,0.16989973]
[1693525262464,0.07536078,216.36,215.63,0.16989973]
[1693525262769,0.07536078,216.36,215.64,0.16989973]
[1693525262967,0.07536078,216.36,215.65,0.16989973]
[1693525263168,0.07536078,216.36,215.66,0.16989973]
[1693525263370,0.07536078,216.36,215.67,0.16989973]
[1693525263666,0.07536078,216.36,215.68,0.16989973]
[1693525263871,0.07536078,216.36,215.57,0.16989973]
[1693525264072,0.07536078,216.36,215.58,0.16989973]
[1693525264379,0.07536078,216.36,215.59,0.16989973]
[1693525264671,0.07536078,216.36,215.6,0.16989973]
[1693525264872,0.07536078,216.36,215.61,0.16989973]
[1693525265073,0.07536078,216.36,215.62,0.16989973]
[1693525265265,0.07536078,216.36,215.63,0.16989973]
[1693525265471,0.07536078,216.36,215.64,0.16989973]
[1693525265772,0.07536078,216.36,215.65,0.16989973]
[1693525265965,0.07536078,216.36,215.57,0.16989973]
[1693525266167,0.07536078,216.36,215.58,0.16989973]
[1693525266367,0.07536078,216.36,215.57,0.16989973]
[1693525266671,0.07536078,216.36,215.58,0.16989973]
[1693525266871,0.07536078,216.36,215.59,0.16989973]
[1693525267167,0.07536078,216.36,215.6,0.16989973]
[1693525267168,0.075442,216.36,215.6,0.16989973]
[1693525267371,0.075442,216.36,215.61,0.16989973]
[1693525267569,0.075442,216.4,215.62,0.16989973]
[1693525267773,0.075442,216.43,215.63,0.16989973]
[1693525267969,0.075442,216.43,215.64,0.16989973]
[1693525268169,0.075442,216.43,215.57,0.16989973]
[1693525268373,0.075442,216.43,215.58,0.16989973]
[1693525268573,0.075442,216.43,215.61,5.0509086]
[1693525268774,0.075442,216.44,215.62,0.16989973]
[1693525268975,0.075442,216.44,215.63,0.16989973]
[1693525269171,0.075442,216.44,215.64,0.16989973]
[1693525269374,0.075442,216.44,215.65,0.16989973]
[1693525269576,0.075442,216.44,215.66,0.16989973]
[1693525269777,0.075442,216.44,215.67,0.16989973]
[1693525269977,0.075442,216.44,215.6,0.16989973]
[1693525270178,0.075442,216.44,215.61,0.16989973]
[1693525270372,0.075442,216.44,215.6,0.16989973]
[1693525270574,0.075442,216.44,55.58,2.31082615]
[1693525270575,3.46872928,216.74,215.61,0.16989973]
[1693525270775,0.07535298,216.44,215.6,5.04307871]
[1693525270972,0.07535298,216.45,215.61,0.16989973]
[1693525271175,0.07535298,216.45,215.62,0.16989973]
[1693525271479,0.07535298,216.45,215.63,0.16989973]
[1693525271677,0.07535298,216.45,215.64,0.16989973]
[1693525271873,0.07535298,216.45,215.6,0.16989973]
[1693525272078,0.07535298,216.45,215.61,0.16989973]
[1693525272281,0.07535298,216.45,215.62,0.16989973]
[1693525272481,0.07535298,216.45,215.6,0.16989973]
[1693525272677,0.07535298,216.45,215.61,0.16989973]
[1693525272878,0.07535298,216.46,215.62,0.16989973]
[1693525273076,0.07535298,216.46,215.63,0.16989973]
[1693525273275,0.07535298,216.46,215.59,0.16989973]
[1693525273477,0.07535298,216.46,215.6,0.16989973]
[1693525273678,0.07535298,216.46,215.59,0.16989973]
[1693525273979,0.07535298,216.46,215.6,0.16989973]
[1693525274176,0.07535298,216.46,215.61,0.16989973]
[1693525274381,0.07535298,216.46,215.62,0.16989973]
[1693525274584,0.07535298,216.46,215.59,0.16989973]
[1693525274782,0.07535298,216.46,215.6,0.16989973]
[1693525274982,0.07535298,216.46,215.61,0.16989973]
[1693525275282,0.07535298,216.46,215.62,0.16989973]
[1693525275482,0.07535298,216.46,215.63,0.16989973]
[1693525275684,0.07535298,216.47,215.64,0.16989973]
[1693525275879,0.07535298,216.47,215.59,0.16989973]
[1693525276086,0.07535298,216.47,215.6,0.16989973]
[1693525276285,0.07535298,216.47,215.61,0.16989973]
[1693525276484,0.07535298,216.47,215.58,0.16989973]
[1693525276685,0.07535298,216.47,215.59,0.16989973]
[1693525276886,0.07535298,216.47,215.6,0.16989973]
[1693525277086,0.07535298,216.47,215.58,0.16989973]
[1693525277387,0.07535298,216.47,215.59,0.16989973]
[1693525277586,0.07535298,216.47,215.58,0.16989973]
[1693525277787,0.07535298,216.47,215.59,0.16989973]
[1693525277987,0.07535298,216.47,215.6,0.16989973]
[1693525278189,0.07535298,216.47,215.61,0.16989973]
[1693525278384,0.07535298,216.47,215.58,0.16989973]
[1693525278585,0.07535298,216.47,215.59,0.16989973]
[1693525278780,0.07535298,216.47,215.6,0.16989973]
[1693525278985,0.07535298,216.47,215.58,0.16989973]
[1693525279185,0.07535298,216.47,215.57,5.04307871]
[1693525279186,0.07535298,216.47,215.59,0.16989973]
[1693525279386,0.07535298,216.47,215.6,0.16989973]
[1693525279587,0.07535298,216.47,215.57,0.16989973]
[1693525280088,0.07535298,216.48,215.57,0.16989973]
[1693525280285,0.07535298,216.47,215.57,0.16989973]
[1693525280488,0.07535298,216.47,215.57,5.21297844]
[1693525280787,0.07535298,216.47,215.58,0.16989973]
[1693525280988,0.07535298,216.47,215.59,0.16989973]
[1693525281191,0.07535298,216.47,215.57,0.16989973]
[1693525281389,0.07535298,216.47,215.58,0.16989973]
[1693525281584,0.07535298,216.47,215.57,0.16989973]
[1693525281889,0.07535298,216.47,215.58,0.16989973]
[1693525282092,0.07535298,216.47,215.59,0.16989973]
[1693525282287,0.07535298,216.47,215.57,0.16989973]
[1693525282487,0.07535298,216.47,215.58,0.16989973]
[1693525282786,0.07535298,216.47,215.59,0.16989973]
[1693525282987,0.07535298,216.47,215.56,0.16989973]
[1693525283188,0.07535298,216.47,215.57,0.16989973]
[1693525283387,0.07535298,216.47,215.58,0.16989973]
[1693525283589,0.07535298,216.47,215.59,0.16989973]
[1693525283792,0.07535298,216.47,215.6,0.16989973]
[1693525283990,0.07535298,216.47,215.61,0.16989973]
[1693525284186,0.07535298,216.47,215.62,0.16989973]
[1693525284389,0.07535298,216.47,215.56,0.16989973]
[1693525284691,0.07535298,216.47,215.57,0.16989973]
[1693525284990,0.07535298,216.46,215.58,0.16989973]
[1693525285191,0.07535298,216.46,215.56,0.16989973]
[1693525285391,0.07535298,216.46,215.57,0.16989973]
[1693525285592,0.07535298,216.46,215.58,0.16989973]
[1693525285792,0.07535298,216.46,215.59,0.16989973]
[1693525285992,0.07535298,216.46,215.6,0.16989973]
[1693525286185,0.07535298,216.46,215.56,0.16989973]
[1693525286390,0.07535298,216.46,215.57,0.16989973]
[1693525286595,0.07535298,216.46,215.56,0.16989973]
[1693525286789,0.07535298,216.46,215.57,0.16989973]
[1693525286991,0.07535298,216.46,215.58,0.16989973]
[1693525287191,0.07535298,216.46,215.56,0.16989973]
[1693525287391,0.07535298,216.46,215.57,0.16989973]
[1693525287593,0.07535298,216.46,215.58,0.16989973]
[1693525287791,0.07535298,216.46,215.59,0.16989973]
[1693525287988,0.07535298,216.46,215.6,0.16989973]
[1693525288194,0.07535298,216.46,215.56,0.16989973]
[1693525288394,0.07535298,216.46,215.57,0.16989973]
[1693525288694,0.07535298,216.46,215.58,0.16989973]
[1693525288996,0.07535298,216.46,215.59,0.16989973]
[1693525289189,0.07535298,216.46,215.56,0.16989973]
[1693525289392,0.07535298,216.46,215.57,0.16989973]
[1693525289593,0.07535298,216.46,215.58,0.16989973]
[1693525289791,0.07535298,216.46,215.59,0.16989973]
[1693525289992,0.07535298,216.46,215.6,0.16989973]
[1693525290190,0.07535298,216.46,215.56,0.16989973]
[1693525290492,0.07535298,216.46,215.57,0.16989973]
[1693525290695,0.07535298,216.45,215.56,0.16989973]
[1693525290890,0.07535298,216.45,215.57,0.16989973]
[1693525291097,0.07535298,216.45,215.58,0.16989973]
[1693525291290,0.07535298,216.45,215.59,0.16989973]
[1693525291493,0.07535298,216.45,215.6,0.16989973]
[1693525291696,0.07535298,216.44,215.56,0.16989973]
[1693525291899,0.07535298,216.44,215.57,0.16989973]
[1693525292095,0.07535298,216.44,215.58,0.16989973]
[1693525292293,0.07535298,216.44,215.59,0.16989973]
[1693525292492,0.07535298,216.44,215.6,0.16989973]
[1693525292701,0.07535298,216.44,215.55,0.16989973]
[1693525292899,0.07535298,216.44,215.56,0.16989973]
[1693525293199,0.07535298,216.44,215.57,0.16989973]
[1693525295102,0.07535298,216.44,215.57,5.21297844]
[1693525295401,0.07535298,216.44,215.58,0.16989973]
[1693525297501,0.07535298,216.43,215.58,5.21297844]
[1693525297803,0.07535298,216.43,215.59,0.16989973]
[1693525300002,0.07535298,216.42,215.59,0.16989973]
[1693525300801,0.07535298,216.41,215.6,5.04307871]
[1693525301001,0.07535298,216.41,215.61,0.16989973]
[1693525301702,0.07535298,216.39,215.62,5.04307871]
[1693525301903,0.07535298,216.39,215.63,0.16989973]
[1693525305804,0.07535298,216.4,215.63,0.16989973]
[1693525311913,0.07535298,216.4,215.63,5.21297844]
[1693525312214,0.07535298,216.4,215.64,0.16989973]
[1693525323117,0.07535298,216.41,215.64,0.16989973]
[1693525323521,0.07535298,216.41,215.64,5.21297844]
[1693525323720,0.07535298,216.41,215.65,0.16989973]
[1693525325822,0.07535298,216.4,215.65,0.16989973]
[1693525326016,0.07535298,216.4,215.66,0.16989973]
[1693525326219,0.07535298,216.4,215.67,0.16989973]
[1693525326418,0.07535298,216.4,215.64,0.16989973]
[1693525326621,0.07535298,216.41,215.65,0.16989973]
[1693525326823,0.07535298,216.4,215.66,0.16989973]
[1693525327022,0.07535298,216.4,215.64,0.16989973]
[1693525327326,0.07535298,216.4,215.65,0.16989973]
[1693525327516,0.07535298,216.4,215.66,0.16989973]
[1693525327719,0.07535298,216.4,215.64,0.16989973]
[1693525327919,0.07535298,216.4,215.65,0.16989973]
[1693525328123,0.07535298,216.4,215.66,0.16989973]
[1693525328421,0.07535298,216.4,215.67,0.16989973]
[1693525328615,0.07535298,216.4,215.68,0.16989973]
[1693525328819,0.07535298,216.4,215.69,0.16989973]
[1693525329115,0.07535298,216.4,215.7,0.16989973]
[1693525329317,0.07535298,216.4,215.71,0.16989973]
[1693525329519,0.07535298,216.4,215.72,0.16989973]
[1693525329720,0.07535298,216.4,215.64,0.16989973]
[1693525329919,0.07535298,216.4,215.65,0.16989973]
[1693525330123,0.07535298,216.41,215.66,0.16989973]
[1693525330323,0.07535298,216.41,215.64,0.16989973]
[1693525330522,0.15070597,216.43,215.65,0.16989973]
[1693525330523,0.07535298,216.4,215.65,0.16989973]
[1693525330821,0.15070597,216.43,215.65,0.16989973]
[1693525330822,0.07535298,216.41,215.65,0.16989973]
[1693525334126,0.07535298,216.41,215.66,0.16989973]
[1693525334325,0.07535298,216.41,215.67,0.16989973]
[1693525334525,0.07535298,216.41,215.68,0.16989973]
[1693525334728,0.07535298,216.41,215.69,0.16989973]
[1693525334923,0.07535298,216.41,215.64,0.16989973]
[1693525335122,0.07535298,216.41,215.65,0.16989973]
[1693525335322,0.07535298,216.41,215.66,0.16989973]
[1693525335628,0.07535298,216.41,215.67,0.16989973]
[1693525335928,0.07535298,216.41,215.68,0.16989973]
[1693525336127,0.07535298,216.41,215.69,0.16989973]
[1693525336323,0.07535298,216.41,215.7,0.16989973]
[1693525336529,0.07535298,216.41,215.71,0.16989973]
[1693525336823,0.07535298,216.41,215.72,0.16989973]
[1693525337029,0.07535298,216.41,215.73,0.16989973]
[1693525337231,0.07535298,216.41,215.74,0.16989973]
[1693525337425,0.07535298,216.41,215.75,0.16989973]
[1693525337628,0.07535298,216.41,215.65,0.16989973]
[1693525337828,0.07535298,216.41,215.66,0.16989973]
[1693525338129,0.07535298,216.41,215.67,0.16989973]
[1693525338325,0.07535298,216.41,215.68,0.16989973]
[1693525338525,0.07535298,216.41,215.69,0.16989973]
[1693525338730,0.07535298,216.41,215.7,0.16989973]
[1693525339025,0.07535298,216.41,215.71,0.16989973]
[1693525339230,0.07535298,216.41,215.72,0.16989973]
[1693525339430,0.07535298,216.41,215.73,0.16989973]
[1693525339631,0.07535298,216.41,215.74,0.16989973]
[1693525339833,0.07535298,216.41,215.75,0.16989973]
[1693525340132,0.07535298,216.41,215.76,0.16989973]
[1693525340433,0.07535298,216.41,215.77,0.16989973]
[1693525340633,0.07535298,216.41,215.78,0.16989973]
[1693525340933,0.07535298,216.41,215.79,0.16989973]
[1693525341128,0.07535298,216.41,215.8,0.16989973]
[1693525341432,0.07535298,216.4,215.81,0.16989973]
[1693525341632,0.07535298,216.4,215.82,0.16989973]
[1693525341834,0.07535298,216.4,215.64,0.16989973]
[1693525342033,0.07535298,216.4,215.65,0.16989973]
[1693525342233,0.07535298,216.4,215.66,0.16989973]
[1693525342436,0.07535298,216.4,215.67,0.16989973]
[1693525342634,0.07535298,216.4,215.64,0.16989973]
[1693525342929,0.07535298,216.4,215.65,0.16989973]
[1693525343128,0.07535298,216.4,215.66,0.16989973]
[1693525343328,0.07535298,216.41,215.67,0.16989973]
[1693525343528,0.07535298,216.41,215.68,0.16989973]
[1693525343732,0.07535298,216.4,215.69,0.16989973]
[1693525343932,0.07535298,216.4,215.7,0.16989973]
[1693525344132,0.07535298,216.4,215.71,0.16989973]
[1693525344334,0.07535298,216.4,215.72,0.16989973]
[1693525344535,0.07535298,216.4,215.65,0.16989973]
[1693525344736,0.07535298,216.41,215.66,0.16989973]
[1693525345034,0.07535298,216.41,215.67,0.16989973]
[1693525345234,0.07535298,216.41,215.68,0.16989973]
[1693525345429,0.07535298,216.41,215.69,0.16989973]
[1693525345635,0.07535298,216.41,215.7,0.16989973]
[1693525345834,0.07535298,216.4,215.71,0.16989973]
[1693525346035,0.07535298,216.4,215.65,0.16989973]
[1693525346235,0.07535298,216.4,215.66,0.16989973]
[1693525346436,0.07535298,216.4,215.65,0.16989973]
[1693525346636,0.07535298,216.4,215.66,0.16989973]
[1693525346829,0.07535298,216.4,215.65,0.16989973]
[1693525347034,0.07535298,216.4,215.66,0.16989973]
[1693525347235,0.07535298,216.4,215.65,0.16989973]
[1693525347529,0.07535298,216.4,215.66,0.16989973]
[1693525347734,0.07535298,216.4,215.67,0.16989973]
[1693525348036,0.07535298,216.4,215.68,0.16989973]
[1693525348336,0.07535298,216.4,215.69,0.16989973]
[1693525348537,0.07535298,216.4,215.7,0.16989973]
[1693525348732,0.07535298,216.4,215.71,0.16989973]
[1693525348938,0.07535298,216.4,215.72,0.16989973]
[1693525349138,0.07535298,216.4,215.73,0.16989973]
[1693525349342,0.07535298,216.4,215.74,0.16989973]
[1693525349639,0.07535298,216.4,215.75,0.16989973]
[1693525349938,0.07535298,216.41,215.76,0.16989973]